bitfinex/quotes_ETHUSD_20240530
["timestamp","ask_amount","ask_price","bid_price","bid_amount"]
[1717083195305,2.64172,3785.5,3784.2,2.4438]
[1717083195605,2.64172,3785.5,3784.4,4.0]
[1717083195769,2.64196,3785.1,3784.4,4.0]
[1717083195970,2.64163,3785.6,3784.4,4.64438]
[1717083196170,2.64163,3785.6,3784.5,35.0]
[1717083196368,0.06604941,3785.5,3784.5,35.0]
[1717083196574,2.64174,3785.4,3784.6,2.64560763]
[1717083197160,2.64174,3785.4,3784.4,0.64438]
[1717083197602,2.64174,3785.4,3784.5,35.0]
[1717083199546,2.64204,3785.0,3784.2,2.4438]
[1717083200345,2.64219,3784.8,3784.2,2.4438]
[1717083201512,2.64185,3785.3,3784.2,2.4438]
[1717083202748,2.6421,3784.9,3784.2,2.4438]
[1717083203461,2.64235,3784.5,3784.2,2.4438]
[1717083204672,2.64249,3784.3,3784.2,2.4438]
[1717083204871,5.64249,3784.3,3784.2,2.4438]
[1717083205665,5.64249,3784.3,3781.2,2.788]
[1717083205666,3.352249,3784.2,3781.9,7.3]
[1717083205829,3.352249,3784.2,3781.6,4.0]
[1717083205830,2.64362,3782.7,3781.6,4.0]
[1717083206875,3.0,3783.4,3781.4,2.64448]
[1717083207045,2.64275,3784.0,3781.4,2.64448]
[1717083207046,2.64362,3782.7,3781.4,2.64448]
[1717083207374,2.64362,3782.7,3781.5,0.264448]
[1717083207569,3.0,3783.3,3781.0,2.64479]
[1717083207869,0.55,3783.2,3781.0,2.64479]
[1717083208430,2.64362,3782.7,3781.3,2.64452]
[1717083208656,2.64362,3782.7,3781.4,0.264452]
[1717083209242,2.64362,3782.7,3781.5,2.64443]
[1717083209656,2.64362,3782.7,3781.7,2.64428]
[1717083210237,2.64334,3783.1,3781.7,2.64428]
[1717083210438,3.0,3783.0,3781.7,2.64428]
[1717083210833,2.4949,3782.9,3781.7,2.64428]
[1717083211138,2.4949,3782.9,3781.8,0.264428]
[1717083211474,2.4949,3782.9,3781.9,0.05287753]
[1717083211674,2.4949,3782.9,3781.8,0.264428]
[1717083211969,2.64356,3782.8,3781.7,2.64428]
[1717083213687,2.6438,3782.5,3781.3,2.64458]
[1717083213989,2.6438,3782.5,3781.4,0.264458]
[1717083215284,2.6438,3782.5,3781.2,7.3]
[1717083215491,2.4749,3782.1,3781.2,7.3]
[1717083218398,2.4749,3782.1,3781.3,2.64458]
[1717083218601,2.64371,3782.6,3781.3,2.64458]
[1717083218759,2.64371,3782.6,3781.2,7.3]
[1717083218760,2.64371,3782.6,3781.6,2.64437]
[1717083220373,2.64371,3782.6,3781.2,9.94463]
[1717083222018,2.644,3782.2,3781.2,7.3]
[1717083222217,2.4365,3782.1,3781.2,7.3]
[1717083222699,2.64414,3782.0,3781.2,7.3]
[1717083228081,2.64414,3782.0,3781.0,2.64477]
[1717083228477,2.64414,3782.0,3781.0,3.639247]
[1717083229833,2.64433,3781.7,3780.8,7.3]
[1717083231044,2.64433,3781.7,3780.8,9.94493]
[1717083236198,2.3771,3781.3,3780.8,7.3]
[1717083239656,2.3771,3781.3,3780.7,2.64501]
[1717083241504,2.6443,3781.8,3780.7,2.64501]
[1717083241893,2.6443,3781.8,3780.9,2.6448]
[1717083242199,2.6443,3781.8,3780.9,2.90928]
[1717083244214,2.3504,3781.9,3780.9,2.90928]
[1717083244865,2.3504,3781.9,3781.2,2.64465]
[1717083245181,2.442,3782.5,3781.9,2.64417]
[1717083245762,2.442,3782.5,3781.5,9.94439]
[1717083246164,3.152412,3782.4,3781.5,9.94439]
[1717083246410,2.64385,3782.4,3781.5,9.94439]
[1717083246562,2.442,3782.5,3781.5,7.3]
[1717083246563,2.64405,3782.1,3781.5,7.3]
[1717083246913,2.64405,3782.1,3781.1,2.64467]
[1717083246914,0.27101549,3782.0,3781.1,2.64467]
[1717083247232,2.64405,3782.1,3781.1,2.64467]
[1717083247509,2.64405,3782.1,3780.9,7.3]
[1717083248529,2.64405,3782.1,3781.0,2.64478]
[1717083249811,2.3513,3781.7,3780.9,7.3]
[1717083250105,2.64461,3781.3,3780.3,7.3]
[1717083250317,0.55,3781.6,3780.4,2.64517]
[1717083250814,4.99566,3781.7,3780.4,2.64517]
[1717083250963,4.99566,3781.7,3780.6,2.64502]
[1717083251396,2.64449,3781.5,3780.6,2.64502]
[1717083251596,2.3513,3781.7,3780.6,2.64502]
[1717083251825,2.3513,3781.7,3780.9,2.64482]
[1717083252007,2.64422,3781.9,3781.0,0.264482]
[1717083252630,2.64422,3781.9,3781.1,2.64473]
[1717083252949,2.64422,3781.9,3780.8,7.3]
[1717083253249,2.64422,3781.9,3780.9,2.64486]
[1717083253845,2.4376,3781.5,3780.8,7.3]
[1717083255404,2.64453,3781.4,3780.8,7.3]
[1717083257339,2.64453,3781.4,3780.5,2.64511]
[1717083258507,0.508213,3781.4,3780.3,7.3]
[1717083258740,2.64473,3781.1,3780.3,7.3]
[1717083259654,5.0821,3781.5,3780.4,2.64522]
[1717083260074,2.64468,3781.2,3780.4,2.64522]
[1717083260269,2.64468,3781.2,3780.3,7.3]
[1717083261346,2.64468,3781.2,3780.3,10.939784]
[1717083262085,2.4376,3781.5,3780.3,10.939784]
[1717083262391,2.4376,3781.5,3780.6,2.64506]
[1717083262943,2.4376,3781.5,3780.9,2.64485]
[1717083263177,5.10916,3782.0,3780.9,2.64485]
[1717083263375,5.10916,3782.0,3781.0,0.264485]
[1717083263587,5.10916,3782.0,3780.9,2.64485]
[1717083263807,2.64436,3781.7,3780.9,2.64485]
[1717083264461,2.64436,3781.7,3780.5,2.6451]
[1717083264862,2.64436,3781.7,3780.8,2.64493]
[1717083265058,2.64436,3781.7,3780.9,0.264493]
[1717083267402,2.64436,3781.7,3780.4,2.64515]
[1717083268528,2.64453,3781.4,3780.4,2.64515]
[1717083268679,2.3209,3781.3,3780.4,2.64515]
[1717083271026,2.3209,3781.3,3780.6,2.64501]
[1717083271326,2.3209,3781.3,3780.7,0.264501]
[1717083272030,2.3209,3781.3,3780.8,2.64492]
[1717083273298,2.64431,3781.7,3780.8,2.64492]
[1717083274415,2.4702,3781.8,3781.0,2.64474]
[1717083275346,2.4702,3781.8,3781.2,2.6446]
[1717083275526,2.64409,3782.1,3781.2,2.6446]
[1717083275836,2.64409,3782.1,3781.2,2.90906]
[1717083276042,2.2668,3782.3,3781.4,2.64446]
[1717083276348,2.2668,3782.3,3781.6,2.64432]
[1717083276566,2.64361,3782.7,3781.6,2.64432]
[1717083276699,2.64361,3782.7,3781.9,2.64414]
[1717083277707,2.64386,3782.4,3781.4,7.3]
[1717083277906,2.3834,3782.1,3781.4,7.3]
[1717083278437,2.71021135,3782.0,3781.4,7.3]
[1717083279357,2.6441,3782.0,3781.4,7.3]
[1717083279858,3.0,3782.9,3782.0,2.64406]
[1717083279859,2.366,3782.9,3782.0,2.64406]
[1717083280015,14.45437455,3785.1,3781.3,1.915]
[1717083280016,2.366,3783.5,3782.3,2.64388]
[1717083280906,2.366,3783.5,3782.6,2.64367]
[1717083281359,2.866904,3783.5,3782.6,2.64367]
[1717083281725,2.866904,3783.5,3782.2,9.9439]
[1717083281726,2.64314,3783.4,3782.2,9.9439]
[1717083284858,2.64336,3783.1,3782.2,9.9439]
[1717083290299,5.0091,3783.5,3782.2,9.9439]
[1717083290600,5.0091,3783.5,3782.5,2.6437]
[1717083290753,5.0091,3783.5,3782.8,2.64353]
[1717083290754,2.366,3783.5,3782.8,2.64353]
[1717083291095,5.00906,3783.5,3782.8,35.0]
[1717083291311,2.254,3782.9,3782.2,7.3]
[1717083291602,2.254,3782.9,3782.2,9.94395]
[1717083295218,2.254,3782.9,3782.2,44.94395]
[1717083295423,2.254,3782.9,3782.2,37.64395]
[1717083297319,2.64342,3783.0,3782.2,37.64395]
[1717083297623,2.64342,3783.0,3782.3,2.64560763]
[1717083298282,2.64342,3783.0,3782.2,2.64395]
[1717083298680,2.64342,3783.0,3781.9,35.0]
[1717083299025,2.64378,3782.5,3781.9,35.0]
[1717083299231,2.64378,3782.5,3781.8,7.3]
[1717083299784,2.64378,3782.5,3781.8,42.3]
[1717083300041,2.3752,3782.6,3781.8,42.3]
[1717083300202,2.3752,3782.6,3781.9,2.64414]
[1717083303306,2.3752,3782.6,3782.0,35.0]
[1717083304063,2.332,3783.1,3782.1,2.64398]
[1717083304643,2.332,3783.1,3782.3,2.64387]
[1717083304850,2.332,3783.1,3782.4,2.64560763]
[1717083305287,2.332,3783.1,3782.3,2.64387]
[1717083305658,2.332,3783.1,3782.5,2.64371]
[1717083306298,2.4387,3783.6,3782.5,2.64371]
[1717083308076,2.4387,3783.6,3782.8,2.64352]
[1717083309268,4.55767,3784.1,3783.1,2.64329]
[1717083309269,5.01967,3784.1,3783.1,2.64329]
[1717083310070,5.01967,3784.1,3783.3,2.64318]
[1717083310389,2.377,3784.1,3783.3,2.64318]
[1717083310564,2.64241,3784.5,3783.5,2.64303]
[1717083311470,2.64241,3784.5,3782.9,7.3]
[1717083311471,2.4609,3784.6,3783.4,2.64311]
[1717083311677,2.64253,3784.3,3783.6,35.0]
[1717083314595,2.64253,3784.3,3783.4,2.64311]
[1717083314797,3.152873,3784.3,3783.4,2.64311]
[1717083315117,3.152873,3784.3,3782.9,7.3]
[1717083315118,0.06607288,3784.2,3783.0,37.64334]
[1717083315998,3.152873,3784.3,3783.3,2.64316]
[1717083316297,2.64253,3784.3,3783.3,5.28876763]
[1717083317101,0.06607538,3784.2,3783.3,2.64316]
[1717083317454,0.06607538,3784.2,3783.4,35.0]
[1717083317654,2.64253,3784.3,3783.4,35.0]
[1717083318250,2.64271,3784.0,3782.9,9.94341]
[1717083318499,0.33034936,3783.9,3782.9,9.94341]
[1717083318694,2.2625,3783.7,3783.0,35.0]
[1717083318999,2.2625,3783.7,3782.9,9.94341]
[1717083319181,0.06608424,3783.6,3782.9,9.94341]
[1717083319384,0.06608424,3783.6,3782.9,44.94341]
[1717083319696,0.06608424,3783.6,3782.9,42.3]
[1717083320799,3.14019642,3783.5,3782.9,7.3]
[1717083321013,0.06608668,3783.4,3782.9,7.3]
[1717083321289,2.64321,3783.3,3782.9,7.3]
[1717083321502,2.64321,3783.3,3782.6,35.0]
[1717083323924,2.907531,3783.3,3782.2,7.3]
[1717083324104,2.64341,3783.0,3782.2,7.3]
[1717083324406,2.64362,3782.7,3782.2,7.3]
[1717083324572,2.6438,3782.5,3781.7,7.3]
[1717083325708,2.64398,3782.2,3781.7,7.3]
[1717083326429,2.2759,3782.1,3781.7,7.3]
[1717083327392,2.64413,3782.0,3781.5,35.0]
[1717083327598,2.64413,3782.0,3780.9,2.64483]
[1717083327797,2.64413,3782.0,3780.0,7.3]
[1717083327798,2.64431,3781.7,3780.5,2.64511]
[1717083328011,0.06611827,3781.6,3780.6,35.264511]
[1717083328174,0.06611827,3781.6,3781.0,4.0]
[1717083328993,0.06611827,3781.6,3780.6,35.264511]
[1717083330397,2.71057881,3781.5,3780.6,0.264511]
[1717083330626,2.71057881,3781.5,3780.5,2.64511]
[1717083330627,2.4445,3781.4,3780.5,2.64511]
[1717083331724,2.71072378,3781.3,3780.6,0.0638928]
[1717083331889,0.06612605,3781.2,3780.6,0.0638928]
[1717083332103,0.06612605,3781.2,3780.1,2.6454]
[1717083332299,0.06612604,3781.2,3780.7,0.06384299]
[1717083332494,2.64474,3781.1,3780.1,2.6454]
[1717083332716,2.64474,3781.1,3780.8,0.06379318]
[1717083332919,3.153664,3781.1,3780.1,2.6454]
[1717083333232,3.153664,3781.1,3780.2,0.06166155]
[1717083333827,0.0661316,3781.0,3780.2,0.06166155]
[1717083334414,3.153664,3781.1,3780.2,0.06166155]
[1717083334829,3.153664,3781.1,3780.7,35.0]
[1717083335186,3.153664,3781.1,3780.8,0.06140653]
[1717083337938,2.64474,3781.1,3780.8,0.06140653]
[1717083338950,2.64474,3781.1,3780.2,35.0]
[1717083339314,2.64474,3781.1,3780.3,0.05765906]
[1717083339926,2.64474,3781.1,3780.4,35.0]
[1717083340099,2.4445,3781.4,3780.4,35.0]
[1717083340442,2.4445,3781.4,3780.5,2.70316706]
[1717083340655,5.4445,3781.4,3780.5,2.70316706]
[1717083341155,41.89136885,3787.3,3780.5,2.70316706]
[1717083341156,4.97932,3781.9,3780.5,2.70316706]
[1717083341506,4.97932,3781.9,3780.9,2.64483]
[1717083341644,4.97932,3781.9,3781.0,0.264483]
[1717083341844,4.97932,3781.9,3781.0,0.32174952]
[1717083342397,2.64394,3782.3,3781.1,2.6447]
[1717083342603,2.64394,3782.3,3781.1,2.70000203]
[1717083343304,2.3669,3782.4,3781.4,2.6445]
[1717083343665,2.3669,3782.4,3781.6,2.64434]
[1717083343870,2.3669,3782.4,3781.7,35.0]
[1717083344310,2.3669,3782.4,3781.8,0.05299702]
[1717083344953,2.3669,3782.4,3781.9,35.0]
[1717083345180,2.3669,3782.4,3781.9,35.05286372]
[1717083345355,2.64366,3782.7,3781.9,35.05286372]
[1717083348035,2.64366,3782.7,3781.9,0.05286372]
[1717083348279,2.64387,3782.4,3781.9,0.05286372]
[1717083348421,2.64387,3782.4,3781.5,2.64444]
[1717083348623,2.64387,3782.4,3782.0,0.05278681]
[1717083348925,0.506526,3782.7,3781.5,2.64444]
[1717083349126,0.506526,3782.7,3782.1,0.05273703]
[1717083349321,0.7486716,3782.6,3781.5,2.64444]
[1717083349520,0.7486716,3782.6,3782.2,0.05268726]
[1717083350023,0.7486716,3782.6,3782.3,0.05263749]
[1717083350224,2.64359,3782.8,3782.3,0.05263749]
[1717083350425,2.64359,3782.8,3781.8,2.64422]
[1717083350848,2.64359,3782.8,3781.9,0.05283658]
[1717083356283,2.64375,3782.5,3781.9,0.05283658]
[1717083356730,2.64375,3782.5,3781.4,9.94445]
[1717083356928,2.64375,3782.5,3782.0,0.05248821]
[1717083357238,2.64375,3782.5,3782.1,0.05243843]
[1717083357655,2.64375,3782.5,3781.4,9.94445]
[1717083357822,2.64375,3782.5,3782.2,0.05238866]
[1717083358126,2.64375,3782.5,3781.4,9.94445]
[1717083358323,2.64375,3782.5,3781.5,0.05273712]
[1717083359550,2.64395,3782.3,3781.5,0.05273712]
[1717083359756,2.3229,3782.1,3781.5,0.05273712]
[1717083359950,2.3229,3782.1,3781.1,7.3]
[1717083360285,2.3229,3782.1,3781.2,0.05124839]
[1717083360480,0.06611477,3782.0,3781.2,0.05124839]
[1717083360999,2.64429,3781.8,3781.2,0.05124839]
[1717083361197,0.06611477,3782.0,3781.2,0.05124839]
[1717083361198,2.64445,3781.5,3781.2,0.05124839]
[1717083361759,2.3229,3782.1,3781.2,2.69589839]
[1717083361957,5.4211,3782.6,3781.2,2.69589839]
[1717083362159,3.0,3782.5,3781.5,2.64443]
[1717083362396,5.64367,3782.7,3781.7,2.64429]
[1717083362699,5.64367,3782.7,3781.8,0.04958681]
[1717083363198,2.64367,3782.7,3781.8,0.04958681]
[1717083363372,2.64367,3782.7,3781.7,2.64429]
[1717083363575,2.64367,3782.7,3781.8,0.04940723]
[1717083363902,2.64367,3782.7,3781.9,0.26936972]
[1717083364405,2.64367,3782.7,3782.0,0.04930768]
[1717083365109,2.64386,3782.4,3782.0,0.04930768]
[1717083365280,0.264386,3782.3,3782.0,0.04930768]
[1717083365602,2.64386,3782.4,3781.6,7.3]
[1717083365961,2.64404,3782.1,3781.7,0.04950296]
[1717083366178,2.908444,3782.1,3781.6,7.3]
[1717083366410,2.64418,3781.9,3781.6,7.3]
[1717083366564,2.64418,3781.9,3780.9,7.3]
[1717083366768,0.06611241,3781.8,3781.0,0.0498536]
[1717083367016,2.64418,3781.9,3781.0,0.0498536]
[1717083367681,2.64418,3781.9,3781.0,1.04932596]
[1717083370169,2.64418,3781.9,3781.1,2.64471]
[1717083370372,2.4076,3782.2,3781.3,2.64458]
[1717083370629,2.64396,3782.3,3781.4,0.04976717]
[1717083370770,2.64396,3782.3,3781.5,2.64442]
[1717083370974,2.64396,3782.3,3781.6,0.04962582]
[1717083371573,2.64396,3782.3,3781.1,2.64469]
[1717083371910,2.64396,3782.3,3781.3,2.64454]
[1717083372113,2.64396,3782.3,3781.4,0.26943149]
[1717083372413,2.64396,3782.3,3781.5,2.64441]
[1717083372815,2.64396,3782.3,3781.6,0.04960077]
[1717083374397,2.64367,3782.7,3781.6,0.04960077]
[1717083374817,2.64384,3782.4,3781.6,0.04960077]
[1717083375024,2.64384,3782.4,3781.6,1.075945]
[1717083377892,2.64384,3782.4,3781.7,2.6443]
[1717083378094,2.64362,3782.7,3781.7,2.6443]
[1717083378314,2.64362,3782.7,3781.8,0.42156954]
[1717083379727,2.64362,3782.7,3781.9,2.64417]
[1717083379930,2.4026,3782.8,3781.9,2.64417]
[1717083380135,2.4026,3782.8,3782.0,0.04939329]
[1717083380938,5.04614,3782.8,3782.0,0.04939329]
[1717083381431,5.04614,3782.8,3782.0,0.35595207]
[1717083381602,5.04614,3782.8,3782.0,0.04939329]
[1717083383432,2.64375,3782.6,3782.0,0.04939329]
[1717083383941,2.64375,3782.6,3781.5,2.64442]
[1717083384223,0.06610412,3782.5,3781.5,2.64442]
[1717083384526,0.06610412,3782.5,3781.6,0.04960285]
[1717083384843,0.06610412,3782.5,3781.6,2.29200513]
[1717083385133,2.4026,3782.8,3782.3,2.64388]
[1717083385430,2.4026,3782.8,3781.6,7.20700513]
[1717083385431,2.4026,3782.8,3782.5,2.64374]
[1717083385646,2.4026,3782.8,3782.6,0.27458421]
[1717083385787,2.4026,3782.8,3782.6,0.32371647]
[1717083386289,2.4026,3782.8,3782.6,0.04913226]
[1717083386716,5.04615,3782.8,3781.9,7.3]
[1717083386986,0.06609922,3782.7,3781.9,7.3]
[1717083387326,5.04615,3782.8,3782.0,0.04943087]
[1717083387484,0.504615,3782.7,3782.0,0.04943087]
[1717083388285,5.04615,3782.8,3782.0,0.04943087]
[1717083389138,2.4026,3782.8,3782.0,2.69347087]
[1717083394080,2.64329,3783.2,3782.0,2.69347087]
[1717083395054,2.64329,3783.2,3782.3,2.64385]
[1717083395260,3.0,3783.6,3782.6,2.64367]
[1717083395261,2.4945,3783.1,3782.6,2.64367]
[1717083395405,2.4945,3783.1,3782.7,0.264367]
[1717083395606,2.4945,3783.1,3782.8,0.0487405]
[1717083395853,2.4945,3783.1,3782.6,2.64367]
[1717083396005,2.4945,3783.1,3782.9,0.04864692]
[1717083396208,2.4945,3783.1,3782.6,2.64367]
[1717083396519,2.4945,3783.1,3782.7,0.04874643]
[1717083397037,2.4945,3783.1,3782.8,0.04868624]
[1717083397400,2.4945,3783.1,3782.6,2.908037]
[1717083397635,2.4945,3783.1,3782.7,0.04873599]
[1717083398167,2.4945,3783.1,3782.6,2.908037]
[1717083398468,2.4945,3783.1,3782.7,0.04873599]
[1717083398837,2.4945,3783.1,3782.6,2.908037]
[1717083399052,2.4945,3783.1,3782.8,0.04866329]
[1717083399240,2.4945,3783.1,3782.7,0.04871513]
[1717083399435,2.4945,3783.1,3782.9,0.04861562]
[1717083399636,2.4945,3783.1,3782.8,0.04866537]
[1717083399836,2.4945,3783.1,3783.0,0.04856587]
[1717083400033,2.4945,3783.1,3782.9,0.04861145]
[1717083400260,2.4945,3783.1,3782.6,2.908037]
[1717083400455,2.4945,3783.1,3783.0,0.04856169]
[1717083400687,2.4945,3783.1,3782.6,2.64367]
[1717083400984,2.4945,3783.1,3783.0,0.04856169]
[1717083401128,2.4945,3783.1,3782.6,2.908037]
[1717083401323,2.4945,3783.1,3782.7,0.048688]
[1717083401725,2.4945,3783.1,3782.6,2.908037]
[1717083401954,2.4945,3783.1,3782.8,0.04863824]
[1717083402163,2.4945,3783.1,3782.8,2.64353]
[1717083402370,2.4945,3783.1,3782.9,0.04858849]
[1717083404469,2.4945,3783.1,3782.9,0.34423704]
[1717083406173,2.4945,3783.1,3783.0,2.6434]
[1717083406548,2.4945,3783.1,3783.0,2.69195961]
[1717083411648,2.64269,3784.1,3783.0,2.69195961]
[1717083412894,2.64279,3783.9,3783.0,2.69195961]
[1717083413609,0.06608142,3783.8,3783.0,0.04855961]
[1717083413953,2.64279,3783.9,3782.8,42.3]
[1717083414156,2.64279,3783.9,3783.1,0.0482428]
[1717083414362,2.64279,3783.9,3782.9,0.04840071]
[1717083414680,0.509959,3783.8,3782.9,2.64347]
[1717083415010,0.509959,3783.8,3783.1,2.64333]
[1717083415214,2.64279,3783.9,3783.1,2.64333]
[1717083415506,2.64279,3783.9,3783.2,0.04829946]
[1717083417133,2.4568,3784.0,3783.2,0.04829946]
[1717083418253,2.4568,3784.0,3783.3,2.64318]
[1717083418545,2.4568,3784.0,3783.3,2.69139633]
[1717083419915,2.4568,3784.0,3783.3,0.04821633]
[1717083420246,2.4568,3784.0,3783.0,2.6434]
[1717083420453,2.4568,3784.0,3783.4,0.04816659]
[1717083420651,5.09956,3784.0,3783.0,2.6434]
[1717083420818,5.09956,3784.0,3783.5,0.04811685]
[1717083421018,5.09956,3784.0,3783.1,35.0]
[1717083421221,5.09956,3784.0,3783.2,2.6938737]
[1717083421422,0.55,3783.9,3783.2,0.04826607]
[1717083421752,2.70893281,3783.8,3783.0,2.6434]
[1717083422057,0.06608288,3783.7,3783.0,2.6434]
[1717083422209,2.64285,3783.8,3783.1,0.04834919]
[1717083422405,0.55,3783.7,3783.1,0.04834919]
[1717083422607,2.64309,3783.5,3782.8,7.3]
[1717083422811,0.55,3783.4,3782.9,0.04844869]
[1717083423017,2.64323,3783.3,3782.9,0.04844869]
[1717083423210,2.64333,3783.1,3782.9,0.04844869]
[1717083423436,3.017663,3783.1,3782.2,35.0]
[1717083423759,2.64333,3783.1,3782.3,0.04874725]
[1717083424627,2.64358,3782.8,3782.3,0.04874725]
[1717083424835,2.463,3783.4,3782.3,0.04874725]
[1717083424836,2.64369,3782.6,3782.3,0.04874725]
[1717083425041,2.64369,3782.6,3782.1,7.3]
[1717083425253,2.64369,3782.6,3782.4,0.04874339]
[1717083425423,2.64369,3782.6,3781.8,35.0]
[1717083425609,2.64369,3782.6,3781.9,0.04899225]
[1717083425815,2.64382,3782.4,3781.3,19.73]
[1717083426038,0.55,3782.3,3781.4,2.69374117]
[1717083426245,0.55,3782.3,3781.5,35.99937412]
[1717083426407,0.55,3782.3,3781.6,0.04933361]
[1717083427146,2.64382,3782.4,3781.6,0.04933361]
[1717083427449,2.64398,3782.2,3781.6,0.04933361]
[1717083427655,0.319398,3782.1,3781.6,0.04933361]
[1717083427849,2.64398,3782.2,3781.6,0.04933361]
[1717083428050,0.55,3782.0,3781.6,0.04933361]
[1717083428250,0.55,3782.0,3781.3,7.3]
[1717083428457,0.55,3782.1,3781.7,0.04932558]
[1717083428627,2.64411,3782.0,3781.3,7.3]
[1717083428831,2.64411,3782.0,3781.4,0.04947494]
[1717083429409,0.06611516,3781.9,3781.4,0.04947494]
[1717083429611,0.55,3781.8,3781.4,0.04947494]
[1717083429856,0.55,3781.9,3781.4,0.04947494]
[1717083430246,2.64411,3782.0,3781.0,2.64476]
[1717083430412,2.64411,3782.0,3781.1,0.04962433]
[1717083431278,2.64426,3781.8,3781.1,0.04962433]
[1717083431593,2.64438,3781.6,3781.1,0.04962433]
[1717083431739,2.64438,3781.6,3780.5,2.64515]
[1717083432087,0.55,3781.5,3780.5,2.64515]
[1717083432374,0.55,3781.5,3780.6,0.04987336]
[1717083432515,1.30165192,3781.5,3780.6,0.04987336]
[1717083432911,1.30165192,3781.5,3780.7,35.0]
[1717083433340,1.30165192,3781.5,3780.8,0.05021838]
[1717083433746,0.55,3781.5,3780.8,0.05021838]
[1717083434059,0.55,3781.5,3781.4,35.0]
[1717083434420,0.55,3781.5,3781.4,35.04991958]
[1717083435431,3.55,3781.5,3781.4,0.04991958]
[1717083435634,3.55,3781.5,3780.4,7.3]
[1717083435635,2.64457,3781.4,3780.4,7.3]
[1717083435835,0.55,3781.3,3780.5,0.05036781]
[1717083436263,2.6447,3781.2,3780.5,0.05036781]
[1717083437880,0.55,3781.1,3780.5,0.05036781]
[1717083438579,2.6448,3781.0,3780.5,0.05036781]
[1717083439489,1.724,3780.6,3780.5,0.05036781]
[1717083439695,1.79014247,3780.6,3780.5,0.05036781]
[1717083439892,2.64527,3780.4,3779.7,7.3]
[1717083440103,2.64543,3780.1,3779.3,19.73]
[1717083440383,0.06614538,3780.0,3779.8,0.05071659]
[1717083440532,0.61614538,3780.0,3779.3,19.73]
[1717083440738,0.27115754,3779.9,3779.3,19.73]
[1717083440945,0.06614958,3779.8,3779.3,19.73]
[1717083441146,3.55,3780.0,3779.3,19.73]
[1717083442234,4.87213922,3780.0,3778.8,2.64632]
[1717083442436,2.64578,3779.6,3778.7,7.3]
[1717083442756,0.06615923,3779.5,3778.7,7.3]
[1717083443067,0.55,3779.4,3778.7,7.3]
[1717083443273,1.32213922,3779.3,3777.7,2.64709]
[1717083443469,1.32213922,3779.3,3777.1,7.3]
[1717083443470,1.724,3777.9,3777.1,9.94749]
[1717083443666,2.64679,3778.2,3777.1,9.94749]
[1717083443667,0.06618081,3778.1,3777.2,0.73]
[1717083443867,2.64679,3778.2,3777.1,2.64749]
[1717083444560,5.64646,3778.7,3777.5,2.64719]
[1717083444754,3.0,3778.7,3777.5,2.64719]
[1717083445083,2.64608,3779.2,3777.7,2.64708]
[1717083445084,3.0,3779.1,3777.7,2.64708]
[1717083446186,3.0,3779.1,3778.1,2.64681]
[1717083447577,2.64608,3779.2,3778.1,2.64681]
[1717083447786,2.64577,3779.7,3778.5,2.64654]
[1717083448163,2.64577,3779.7,3778.6,0.04722912]
[1717083448346,2.64542,3780.2,3778.7,2.6464]
[1717083448551,2.64542,3780.2,3778.7,2.69357925]
[1717083448752,0.264542,3780.1,3778.8,0.26935793]
[1717083448947,0.264542,3780.1,3778.8,0.31648732]
[1717083449903,3.264542,3780.1,3778.8,0.31648732]
[1717083450105,2.64553,3780.0,3778.8,0.31648732]
[1717083450401,2.64553,3780.0,3778.8,0.26935793]
[1717083450402,3.5910072,3779.9,3778.8,0.26935793]
[1717083451275,3.5910072,3779.9,3778.7,2.6464]
[1717083451276,3.19569,3779.8,3778.7,2.6464]
[1717083451802,2.64595,3779.4,3778.3,2.64668]
[1717083452191,2.64595,3779.4,3778.4,0.04732885]
[1717083452501,2.64565,3779.8,3778.5,2.91589088]
[1717083452705,2.64565,3779.8,3778.5,2.69380854]
[1717083453007,2.64535,3780.3,3779.2,2.646]
[1717083453205,2.64501,3780.7,3779.4,2.6459]
[1717083453411,2.64472,3781.2,3779.8,2.64562]
[1717083453758,2.64472,3781.2,3779.9,0.0466019]
[1717083453998,2.64488,3780.9,3779.8,2.64562]
[1717083454643,2.64514,3780.6,3779.4,2.64592]
[1717083455030,0.06613811,3780.5,3779.5,0.04664096]
[1717083455520,3.082054,3780.6,3779.6,2.64577]
[1717083455714,1.724,3780.7,3779.6,2.69237153]
[1717083455965,4.36877,3781.1,3779.9,2.64551]
[1717083456267,3.0,3781.0,3779.9,2.64551]
[1717083456775,3.0,3781.0,3780.0,0.04640219]
[1717083457122,2.64488,3780.9,3780.0,0.04640219]
[1717083457465,1.286888,3780.8,3780.1,0.04635236]
[1717083457825,1.286888,3780.8,3779.7,7.3]
[1717083458035,1.286888,3780.8,3780.2,0.04624636]
[1717083458371,1.286888,3780.8,3780.3,0.04619861]
[1717083458661,0.6931768,3780.7,3780.3,0.04619861]
[1717083458862,0.6931768,3780.7,3780.4,0.04614879]
[1717083458863,0.55,3780.6,3780.4,0.04614879]
[1717083459169,0.55,3780.6,3779.8,2.64559]
[1717083459370,0.55,3780.6,3780.5,0.04609898]
[1717083459569,0.55,3780.6,3779.8,2.64559]
[1717083459769,0.55,3780.6,3780.5,0.04609898]
[1717083460069,1.01249448,3780.6,3780.5,0.04609898]
[1717083460241,2.64519,3780.5,3779.7,7.3]
[1717083460443,0.06614045,3780.4,3779.7,7.3]
[1717083460645,0.06614045,3780.4,3779.8,0.04646648]
[1717083460842,2.64519,3780.5,3779.8,0.04646648]
[1717083461261,1.01249448,3780.6,3779.8,0.04646648]